[Event "Azerbaijan-ch 1st League 2025"]
[Site "Baku"]
[Date "2025.01.12"]
[Round "7.12"]
[White "Allajov, Ramil"]
[Black "Musayev, Eldar"]
[Result "1-0"]
[Annotator "RC"]
[ECO "B76"]
[WhiteElo "2079"]
[BlackElo "2163"]
[PlyCount "129"]
[EventDate "2025.01.05"]
[EventType "swiss"]
[EventCountry "AZE"]
[SourceTitle "playchess.com"]
[Source "ChessBase"]
[SourceQuality "1"]
[TimeControl "40/5400+30:1800+30"]

1. e4 {[%emt 0:00:12]} c5 {[%emt 0:00:33]} 2. Nf3 {[%emt 0:00:06]} d6 {[%emt 0:00:11]} 3. d4 {[%emt 0:00:14]} cxd4 {[%emt 0:00:14]} 4. Nxd4 {[%emt 0:00:04]} Nf6 {[%emt 0:00:04]} 5. Nc3 {[%emt 0:00:06]} g6 {[%emt 0:00:04]} 6. f3 {[%emt 0:00:26]} Bg7 {[%emt 0:00:07]} 7. Be3 {[%emt 0:00:01]} Nc6 {[%emt 0:00:16]} 8. Qd2 {[%emt 0:00:04]} O-O {[%emt 0:00:18]} 9. g4 {[%emt 0:01:09]} Be6 {[%emt 0:00:09]} 10. O-O-O {[%emt 0:01:38]} Nxd4 {[%emt 0:01:58]} 11. Bxd4 {[%emt 0:02:12]} Qa5 {[%emt 0:00:04]} 12. Kb1 {[%emt 0:00:32]} Rfc8 {[%emt 0:00:07]} 13. Nd5 {[%emt 0:11:04]} Qxd2 {[%emt 0:02:31]} 14. Rxd2 {[%emt 0:00:30]} Bxd5 {[%emt 0:00:18]} 15. exd5 {[%emt 0:00:06]} Nd7 {[%emt 0:00:07]} 16. f4 {[%emt 0:04:01]} Bxd4 {[%emt 0:07:40]} 17. Rxd4 {[%emt 0:00:05]} Rc5 {[%emt 0:00:03]} 18. g5 {[%emt 0:06:35]} h6 {[%emt 0:16:42]} 19. h4 {[%emt 0:05:12]} hxg5 {[%emt 0:05:04]} 20. hxg5 {[%emt 0:00:05]} Kg7 {[%emt 0:00:12]} 21. Bd3 {[%emt 0:00:38]} Nb6 {[%emt 0:00:32]} 22. c4 {[%emt 0:02:11]} Rh8 {[%emt 0:00:43]} 23. Rxh8 {[%emt 0:00:33]} Kxh8 {[%emt 0:00:01]} 24. b3 {[%emt 0:01:07]} Kg7 {[%emt 0:00:20]} 25. Re4 {[%emt 0:02:23]} Rc7 {[%emt 0:00:05]} 26. Kb2 {[%emt 0:01:00]} Kf8 {[%emt 0:00:47]} 27. b4 {[%emt 0:02:05]} Rc8 {[%emt 0:04:18]} 28. Kb3 {[%emt 0:00:36]} Na8 {[%emt 0:00:11]} 29. Rd4 {[%emt 0:13:51]} Kg7 {[%emt 0:01:45]} 30. Re4 {[%emt 0:00:37]} Kf8 {[%emt 0:00:18]} 31. Re2 {[%emt 0:05:21]} Nb6 {[%emt 0:00:07]} 32. Rh2 {[%emt 0:08:48]} Kg7 {[%emt 0:01:31]} 33. Re2 {[%emt 0:00:07]} Kf8 {[%emt 0:00:01]} 34. a3 {[%emt 0:03:55]} Rc7 {[%emt 0:01:50]} 35. Rd2 {[%emt 0:10:38]} Kg7 {[%emt 0:01:08]} 36. Bf1 {[%emt 0:02:45]} Rc8 {[%emt 0:01:48]} 37. a4 {[%emt 0:04:42]} a5 {[%emt 0:07:57]} 38. Bh3 {[%emt 0:01:27]} Rc7 {[%emt 0:00:17]} 39. Rc2 {[%emt 0:03:22]} axb4 {[%emt 0:00:28]} 40. a5 {[%emt 0:00:00]} Na8 {[%emt 0:00:00]} 41. Ra2 {[%emt 0:00:19]} Rc5 {[%emt 0:06:09]} 42. Bd7 {[%emt 0:05:38]} Nc7 {[%emt 0:00:56]} 43. Bc8 {[%emt 0:00:34]} Nxd5 {[%emt 0:07:19]} 44. Bxb7 {[%emt 0:00:33]} Nxf4 {[%emt 0:00:02]} 45. a6 {[%emt 0:08:44]} Ne6 {[%emt 0:01:52]} 46. a7 {[%emt 0:00:04]} Nc7 {[%emt 0:00:02]} 47. Kxb4 {[%emt 0:00:14]} Rxg5 {[%emt 0:00:15]} 48. Bc6 {[%emt 0:10:44]} Rh5 {[%emt 0:12:30]} 49. Bb5 {[%emt 0:00:41]} g5 {[%emt 0:00:44]} 50. Ka5 {[%emt 0:00:47]} g4 {[%emt 0:00:19]} 51. Kb6 {[%emt 0:01:21]} Na8+ {[%emt 0:00:13]} 52. Kb7 {[%emt 0:00:05]} Rh8 {[%emt 0:00:05]} 53. Bd7 {[%emt 0:01:28]} e6 {[%emt 0:00:12]} 54. Rg2 {[%emt 0:00:45]} f5 {[%emt 0:00:04]} 55. Bxe6 {[%emt 0:00:29]} Kf6 {[%emt 0:00:01]} 56. Bc8 {[%emt 0:01:52]} Kg5 {[%emt 0:01:53]} 57. Rg1 {[%emt 0:10:39]} Rd8 {[%emt 0:03:50]} 58. Rd1 {[%emt 0:01:12]} g3 {[%emt 0:01:10]} 59. c5 {[%emt 0:00:20]} f4 {[%emt 0:01:55]} 60. Kxa8 {[%emt 0:00:28]} Rxc8+ {[%emt 0:01:46]} 61. Kb7 {[%emt 0:00:06]} Rf8 {[%emt 0:00:08]} 62. cxd6 {[%emt 0:00:17]} f3 {[%emt 0:00:32]} 63. a8=Q {[%emt 0:00:13]} Rxa8 {[%emt 0:00:05]} 64. Kxa8 {[%emt 0:00:04]} f2 {[%emt 0:00:04]} 65. d7 {[%emt 0:00:05]} 1-0

[Event "Azerbaijan-ch 1st League 2025"]
[Site "Baku"]
[Date "2025.01.12"]
[Round "7.13"]
[White "Isfandiyarli, Kamal"]
[Black "Alizada, Agshin"]
[Result "1-0"]
[Annotator "RC"]
[ECO "E74"]
[WhiteElo "2027"]
[BlackElo "2116"]
[PlyCount "65"]
[EventDate "2025.01.05"]
[EventType "swiss"]
[EventCountry "AZE"]
[SourceTitle "playchess.com"]
[Source "ChessBase"]
[SourceQuality "1"]
[TimeControl "40/5400+30:1800+30"]

1. c4 {[%emt 0:00:28]} g6 {[%emt 0:01:05]} 2. Nc3 {[%emt 0:00:37]} Bg7 {[%emt 0:00:36]} 3. d4 {[%emt 0:00:06]} Nf6 {[%emt 0:00:20]} 4. e4 {[%emt 0:00:06]} d6 {[%emt 0:00:03]} 5. Be2 {[%emt 0:00:06]} O-O {[%emt 0:00:07]} 6. Bg5 {[%emt 0:00:04]} c5 {[%emt 0:00:52]} 7. d5 {[%emt 0:00:05]} h6 {[%emt 0:00:20]} 8. Be3 {[%emt 0:00:06]} e6 {[%emt 0:00:04]} 9. Qd2 {[%emt 0:00:06]} Kh7 {[%emt 0:00:03]} 10. Nf3 {[%emt 0:00:40]} exd5 {[%emt 0:00:25]} 11. exd5 {[%emt 0:00:03]} Re8 {[%emt 0:00:13]} 12. h3 {[%emt 0:07:52]} a6 {[%emt 0:02:11]} 13. O-O {[%emt 0:00:48]} Nbd7 {[%emt 0:09:32]} 14. Rae1 {[%emt 0:03:51]} b5 {[%emt 0:09:01]} 15. cxb5 {[%emt 0:02:04]} axb5 {[%emt 0:00:26]} 16. Bxb5 {[%emt 0:00:13]} Ba6 {[%emt 0:01:19]} 17. Bxa6 {[%emt 0:12:45]} Rxa6 {[%emt 0:00:04]} 18. Bf4 {[%emt 0:01:58]} c4 {[%emt 0:17:52]} 19. Nd4 {[%emt 0:07:51]} Nc5 {[%emt 0:17:13]} 20. Nc6 {[%emt 0:03:12]} Qc8 {[%emt 0:04:54]} 21. Rxe8 {[%emt 0:09:52]} Nxe8 {[%emt 0:00:20]} 22. Re1 {[%emt 0:00:11]} Nd3 {[%emt 0:08:24]} 23. Re7 {[%emt 0:03:16]} Qf5 {[%emt 0:00:03]} 24. Bg3 {[%emt 0:01:52]} Rb6 {[%emt 0:08:50]} 25. Na4 {[%emt 0:10:50]} Ra6 {[%emt 0:01:22]} 26. Nc3 {[%emt 0:07:12]} Rb6 {[%emt 0:00:06]} 27. Qe3 {[%emt 0:01:25]} Rxb2 {[%emt 0:01:52]} 28. Qa7 {[%emt 0:01:44]} Qg5 {[%emt 0:12:48]} 29. Rxe8 {[%emt 0:00:54]} Qc1+ {[%emt 0:00:36]} 30. Kh2 {[%emt 0:00:06]} Qxc3 {[%emt 0:01:18]} 31. Qxf7 {[%emt 0:00:08]} h5 {[%emt 0:00:19]} 32. Ne7 {[%emt 0:00:05]} Qf6 {[%emt 0:00:25]} 33. Rh8+ {[%emt 0:00:12]} 1-0

[Event "Azerbaijan-ch 1st League 2025"]
[Site "Baku"]
[Date "2025.01.12"]
[Round "7.14"]
[White "Safarli, Ramzi"]
[Black "Gulumov, Muthat"]
[Result "0-1"]
[Annotator "RC"]
[ECO "E24"]
[WhiteElo "1792"]
[BlackElo "2054"]
[PlyCount "104"]
[EventDate "2025.01.05"]
[EventType "swiss"]
[EventCountry "AZE"]
[SourceTitle "playchess.com"]
[Source "ChessBase"]
[SourceQuality "1"]
[TimeControl "40/5400+30:1800+30"]

1. d4 {[%emt 0:01:35]} Nf6 {[%emt 0:00:10]} 2. c4 {[%emt 0:00:03]} e6 {[%emt 0:00:07]} 3. Nc3 {[%emt 0:00:07]} d5 {[%emt 0:00:09]} 4. Bg5 {[%emt 0:00:07]} Bb4 {[%emt 0:00:06]} 5. a3 {[%emt 0:02:54]} Bxc3+ {[%emt 0:00:17]} 6. bxc3 {[%emt 0:00:01]} c5 {[%emt 0:00:25]} 7. Bxf6 {[%emt 0:07:12]} Qxf6 {[%emt 0:00:14]} 8. Nf3 {[%emt 0:00:25]} Nc6 {[%emt 0:00:30]} 9. e3 {[%emt 0:05:56]} O-O {[%emt 0:00:23]} 10. Rb1 {[%emt 0:00:19]} b6 {[%emt 0:00:32]} 11. Bd3 {[%emt 0:05:35]} dxc4 {[%emt 0:05:47]} 12. Be4 {[%emt 0:10:00]} Bb7 {[%emt 0:01:14]} 13. Qa4 {[%emt 0:03:50]} Rac8 {[%emt 0:07:34]} 14. O-O {[%emt 0:05:04]} Qe7 {[%emt 0:03:17]} 15. Nd2 {[%emt 0:06:32]} cxd4 {[%emt 0:02:39]} 16. exd4 {[%emt 0:00:16]} Rfd8 {[%emt 0:01:07]} 17. Rfe1 {[%emt 0:00:36]} Qc7 {[%emt 0:10:14]} 18. h3 {[%emt 0:14:48]} h6 {[%emt 0:01:37]} 19. Qc2 {[%emt 0:03:47]} Ne7 {[%emt 0:02:52]} 20. Rb4 {[%emt 0:03:00]} Bd5 {[%emt 0:02:23]} 21. Bxd5 {[%emt 0:02:59]} exd5 {[%emt 0:01:15]} 22. Nf3 {[%emt 0:00:13]} Ng6 {[%emt 0:01:28]} 23. g3 {[%emt 0:00:12]} Qd7 {[%emt 0:02:09]} 24. Kg2 {[%emt 0:00:07]} Re8 {[%emt 0:00:05]} 25. Rbb1 {[%emt 0:01:25]} b5 {[%emt 0:00:38]} 26. Qb2 {[%emt 0:03:34]} Rxe1 {[%emt 0:01:49]} 27. Nxe1 {[%emt 0:00:37]} Re8 {[%emt 0:00:46]} 28. Nf3 {[%emt 0:01:49]} a6 {[%emt 0:00:11]} 29. Qc2 {[%emt 0:00:15]} Qd6 {[%emt 0:00:22]} 30. a4 {[%emt 0:00:15]} Rb8 {[%emt 0:01:27]} 31. axb5 {[%emt 0:01:20]} axb5 {[%emt 0:00:37]} 32. Qd2 {[%emt 0:03:00]} Ne7 {[%emt 0:01:01]} 33. Ne1 {[%emt 0:00:03]} Nc6 {[%emt 0:02:58]} 34. Nc2 {[%emt 0:19:34]} Qg6 {[%emt 0:00:48]} 35. Rb2 {[%emt 0:00:00]} Qe4+ {[%emt 0:11:47]} 36. f3 {[%emt 0:00:00]} Qe6 {[%emt 0:02:51]} 37. Na3 {[%emt 0:00:00]} Qe7 {[%emt 0:06:27]} 38. Nxb5 {[%emt 0:00:00]} Na5 {[%emt 0:00:16]} 39. Qf4 {[%emt 0:00:00]} Qe8 {[%emt 0:00:19]} 40. Qc7 {[%emt 0:00:00]} Nc6 {[%emt 0:00:00]} 41. Kf2 {[%emt 0:02:39]} Ne7 {[%emt 0:11:11]} 42. Re2 {[%emt 0:06:41]} Qxb5 {[%emt 0:11:17]} 43. Qxe7 {[%emt 0:01:06]} Ra8 {[%emt 0:01:49]} 44. Qc5 {[%emt 0:10:40]} Qd7 {[%emt 0:03:25]} 45. Kg2 {[%emt 0:03:18]} Qf5 {[%emt 0:01:46]} 46. Qb4 {[%emt 0:10:43]} Qd3 {[%emt 0:01:13]} 47. Rf2 {[%emt 0:00:26]} Ra1 {[%emt 0:01:01]} 48. g4 {[%emt 0:00:31]} Qd1 {[%emt 0:00:56]} 49. Kg3 {[%emt 0:00:46]} Qh1 {[%emt 0:07:45]} 50. Qc5 {[%emt 0:00:23]} g5 {[%emt 0:01:05]} 51. Rg2 {[%emt 0:00:38]} Rg1 {[%emt 0:00:08]} 52. Qc8+ {[%emt 0:00:21]} Kg7 {[%emt 0:00:05]} 0-1

[Event "Azerbaijan-ch 1st League 2025"]
[Site "Baku"]
[Date "2025.01.12"]
[Round "7.15"]
[White "Huseynov, Ahmed"]
[Black "Kazimzade, Mahammad"]
[Result "1-0"]
[Annotator "NA RC"]
[ECO "A45"]
[WhiteElo "1996"]
[BlackElo "1743"]
[PlyCount "61"]
[EventDate "2025.01.05"]
[EventType "swiss"]
[EventCountry "AZE"]
[SourceTitle "playchess.com"]
[Source "ChessBase"]
[SourceQuality "1"]
[TimeControl "40/5400+30:1800+30"]

1. d4 {[%emt 0:00:03]} Nf6 {[%emt 0:00:11]} 2. Bg5 {[%emt 0:00:06]} e6 {[%emt 0:01:01]} 3. c3 {[%emt 0:00:22]} h6 {[%emt 0:02:20]} 4. Bh4 {[%emt 0:03:43]} c5 {[%emt 0:01:27]} 5. e3 {[%emt 0:00:30]} Nc6 {[%emt 0:02:37]} 6. Nd2 {[%emt 0:00:24]} d5 {[%emt 0:01:21]} 7. f4 {[%emt 0:01:38]} Be7 {[%emt 0:02:05]} 8. Bd3 {[%emt 0:00:29]} cxd4 {[%emt 0:01:18]} 9. exd4 {[%emt 0:00:10]} O-O {[%emt 0:03:12]} 10. Ngf3 {[%emt 0:02:47]} Ng4 {[%emt 0:04:22]} 11. Bxe7 {[%emt 0:00:41]} Qxe7 {[%emt 0:00:12]} 12. Qe2 {[%emt 0:00:51]} Qc7 {[%emt 0:03:01]} 13. h3 {[%emt 0:04:38]} Nf6 {[%emt 0:02:10]} 14. Ne5 {[%emt 0:01:23]} Nxe5 {[%emt 0:01:08]} 15. fxe5 {[%emt 0:00:14]} Nd7 {[%emt 0:01:24]} 16. Qh5 {[%emt 0:10:37]} a5 {[%emt 0:07:56]} 17. g4 {[%emt 0:07:09]} f5 {[%emt 0:08:33]} 18. gxf5 {[%emt 0:01:24]} exf5 {[%emt 0:00:34]} 19. O-O-O {[%emt 0:04:14]} a4 {[%emt 0:02:58]} 20. a3 {[%emt 0:02:32]} Nb6 {[%emt 0:07:55]} 21. Rhg1 {[%emt 0:00:27]} Nc4 {[%emt 0:05:21]} 22. Bxc4 {[%emt 0:03:47]} dxc4 {[%emt 0:00:12]} 23. Qxh6 {[%emt 0:02:09]} f4 {[%emt 0:01:57]} 24. Ne4 {[%emt 0:01:32]} Bf5 {[%emt 0:05:49]} 25. Nf6+ {[%emt 0:00:18]} Rxf6 {[%emt 0:00:13]} 26. exf6 {[%emt 0:00:40]} g6 {[%emt 0:00:20]} 27. Rxg6+ {[%emt 0:00:48]} Bxg6 {[%emt 0:00:24]} 28. Qxg6+ {[%emt 0:01:00]} Kh8 {[%emt 0:01:44]} 29. f7 {[%emt 0:00:08]} Qc6 {[%emt 0:00:08]} 30. Qh5+ {[%emt 0:00:06]} Kg7 {[%emt 0:00:32]} 31. Rg1+ {[%emt 0:00:06]} 1-0

[Event "Azerbaijan-ch 1st League 2025"]
[Site "Baku"]
[Date "2025.01.12"]
[Round "7.16"]
[White "Azimov, Yasin"]
[Black "Baghirov, Orkhan"]
[Result "1/2-1/2"]
[Annotator "RC"]
[ECO "A63"]
[WhiteElo "1880"]
[BlackElo "1989"]
[PlyCount "185"]
[EventDate "2025.01.05"]
[EventType "swiss"]
[EventCountry "AZE"]
[SourceTitle "playchess.com"]
[Source "ChessBase"]
[SourceQuality "1"]
[TimeControl "40/5400+30:1800+30"]

1. d4 {[%emt 0:00:05]} Nf6 {[%emt 0:00:27]} 2. c4 {[%emt 1:31:25]} c5 {[%emt 0:00:21]} 3. d5 {[%emt 0:00:00]} e6 {[%emt 0:00:06]} 4. Nc3 {[%emt 0:00:00]} exd5 {[%emt 0:00:01]} 5. cxd5 {[%emt 0:00:00]} d6 {[%emt 0:00:03]} 6. g3 {[%emt 0:00:00]} g6 {[%emt 0:00:03]} 7. Bg2 {[%emt 0:00:00]} Bg7 {[%emt 0:00:06]} 8. Nf3 {[%emt 0:00:00]} O-O {[%emt 0:00:02]} 9. O-O {[%emt 0:00:00]} Re8 {[%emt 0:00:26]} 10. Re1 {[%emt 0:00:00]} a6 {[%emt 0:00:25]} 11. e4 {[%emt 0:00:00]} Nbd7 {[%emt 0:00:22]} 12. a4 {[%emt 0:00:00]} Ng4 {[%emt 0:00:51]} 13. h3 {[%emt 0:00:00]} Nge5 {[%emt 0:01:28]} 14. Nxe5 {[%emt 0:00:00]} Nxe5 {[%emt 0:00:17]} 15. f4 {[%emt 0:00:00]} Nc4 {[%emt 0:00:18]} 16. Qd3 {[%emt 0:00:00]} Na5 {[%emt 0:00:36]} 17. Be3 {[%emt 0:00:00]} Bd7 {[%emt 0:01:47]} 18. Qf1 {[%emt 0:00:00]} Nb3 {[%emt 0:11:17]} 19. Rad1 {[%emt 0:00:00]} Nd4 {[%emt 0:00:08]} 20. Rd2 {[%emt 0:00:00]} b5 {[%emt 0:06:00]} 21. e5 {[%emt 0:00:00]} dxe5 {[%emt 0:04:18]} 22. d6 {[%emt 0:00:00]} exf4 {[%emt 0:04:18]} 23. Bxf4 {[%emt 0:00:00]} Rxe1 {[%emt 0:04:30]} 24. Qxe1 {[%emt 0:00:00]} Qe8 {[%emt 0:00:50]} 25. Qf1 {[%emt 0:00:00]} Ra7 {[%emt 0:09:06]} 26. Nd5 {[%emt 0:00:00]} Be6 {[%emt 0:04:14]} 27. Ne7+ {[%emt 0:00:00]} Rxe7 {[%emt 0:00:55]} 28. dxe7 {[%emt 0:00:00]} Qxe7 {[%emt 0:00:01]} 29. axb5 {[%emt 0:00:00]} axb5 {[%emt 0:00:10]} 30. Kh2 {[%emt 0:00:00]} g5 {[%emt 0:02:37]} 31. Be3 {[%emt 0:00:00]} Bxh3 {[%emt 0:01:19]} 32. Bxd4 {[%emt 0:00:00]} Bxg2 {[%emt 0:00:18]} 33. Bxc5 {[%emt 0:00:00]} Bxf1 {[%emt 0:00:24]} 34. Bxe7 {[%emt 0:00:00]} h6 {[%emt 0:00:01]} 35. Rf2 {[%emt 0:01:01]} Bc4 {[%emt 0:00:10]} 36. Bf6 {[%emt 0:00:40]} Bf8 {[%emt 0:02:41]} 37. Rd2 {[%emt 0:01:05]} Kh7 {[%emt 0:01:11]} 38. Rd8 {[%emt 0:01:07]} Bb4 {[%emt 0:00:35]} 39. Bc3 {[%emt 0:01:56]} Bxc3 {[%emt 0:01:29]} 40. bxc3 {[%emt 0:00:00]} h5 {[%emt 0:00:00]} 41. Rd6 {[%emt 0:02:32]} Kg7 {[%emt 0:00:23]} 42. Kg2 {[%emt 0:02:42]} f6 {[%emt 0:03:37]} 43. Kf3 {[%emt 0:02:51]} Kg6 {[%emt 0:01:12]} 44. g4 {[%emt 0:04:02]} h4 {[%emt 0:01:14]} 45. Rb6 {[%emt 0:01:21]} Kf7 {[%emt 0:02:12]} 46. Kf2 {[%emt 0:02:28]} Be6 {[%emt 0:02:41]} 47. Kf3 {[%emt 0:00:34]} Bd7 {[%emt 0:00:04]} 48. Rd6 {[%emt 0:02:31]} Ke7 {[%emt 0:00:30]} 49. Rb6 {[%emt 0:02:03]} Be8 {[%emt 0:01:11]} 50. Kf2 {[%emt 0:00:36]} Kf7 {[%emt 0:00:30]} 51. Rd6 {[%emt 0:00:58]} Ke7 {[%emt 0:00:07]} 52. Rb6 {[%emt 0:00:11]} Bd7 {[%emt 0:00:03]} 53. Kf3 {[%emt 0:00:13]} Kf7 {[%emt 0:00:06]} 54. Rd6 {[%emt 0:00:12]} Be6 {[%emt 0:00:03]} 55. Rb6 {[%emt 0:00:52]} Bd5+ {[%emt 0:00:23]} 56. Kf2 {[%emt 0:01:11]} Bc4 {[%emt 0:00:01]} 57. Kf3 {[%emt 0:00:37]} Ke7 {[%emt 0:00:11]} 58. Kf2 {[%emt 0:00:14]} Be6 {[%emt 0:00:29]} 59. Kf3 {[%emt 0:00:53]} Bb3 {[%emt 0:01:23]} 60. Kg2 {[%emt 0:00:54]} Bd1 {[%emt 0:00:31]} 61. Kh3 {[%emt 0:00:11]} Be2 {[%emt 0:00:01]} 62. Rc6 {[%emt 0:00:11]} Bf1+ {[%emt 0:01:56]} 63. Kh2 {[%emt 0:00:07]} Bc4 {[%emt 0:00:03]} 64. Rb6 {[%emt 0:01:26]} Be6 {[%emt 0:00:23]} 65. Kh3 {[%emt 0:00:24]} Bd7 {[%emt 0:00:02]} 66. Ra6 {[%emt 0:00:26]} f5 {[%emt 0:01:52]} 67. gxf5 {[%emt 0:03:34]} Bxf5+ {[%emt 0:00:16]} 68. Kg2 {[%emt 0:01:16]} g4 {[%emt 0:02:13]} 69. Rh6 {[%emt 0:01:04]} h3+ {[%emt 0:03:10]} 70. Kg3 {[%emt 0:00:08]} Be6 {[%emt 0:00:01]} 71. Rh5 {[%emt 0:00:15]} Bd7 {[%emt 0:00:01]} 72. Rg5 {[%emt 0:00:38]} Kd6 {[%emt 0:00:38]} 73. Rh5 {[%emt 0:00:15]} Kc6 {[%emt 0:00:53]} 74. Rg5 {[%emt 0:00:09]} Bc8 {[%emt 0:00:21]} 75. Rh5 {[%emt 0:00:18]} Bd7 {[%emt 0:00:22]} 76. Rg5 {[%emt 0:00:09]} Kd6 {[%emt 0:00:00]} 77. Rh5 {[%emt 0:00:12]} Ke7 {[%emt 0:00:01]} 78. Rg5 {[%emt 0:00:16]} Kf6 {[%emt 0:00:12]} 79. Rc5 {[%emt 0:00:37]} Ke6 {[%emt 0:00:35]} 80. Rh5 {[%emt 0:00:09]} Kf6 {[%emt 0:00:37]} 81. Rc5 {[%emt 0:00:14]} Be8 {[%emt 0:00:31]} 82. Rd5 {[%emt 0:00:40]} Bc6 {[%emt 0:00:52]} 83. Rc5 {[%emt 0:00:22]} Bd7 {[%emt 0:00:28]} 84. Rd5 {[%emt 0:00:16]} Ke6 {[%emt 0:00:06]} 85. Rh5 {[%emt 0:00:09]} Kd6 {[%emt 0:01:00]} 86. Rg5 {[%emt 0:00:10]} Kc7 {[%emt 0:00:10]} 87. Rc5+ {[%emt 0:00:13]} Bc6 {[%emt 0:01:13]} 88. Rg5 {[%emt 0:00:07]} Bd7 {[%emt 0:00:13]} 89. Rc5+ {[%emt 0:00:06]} Kd8 {[%emt 0:00:03]} 90. Rh5 {[%emt 0:00:17]} Ke8 {[%emt 0:00:18]} 91. Rc5 {[%emt 0:00:11]} Kf7 {[%emt 0:00:12]} 92. Rg5 {[%emt 0:00:08]} Kf6 {[%emt 0:00:11]} 93. Rc5 {[%emt 0:00:07]} 1/2-1/2

[Event "Azerbaijan-ch 1st League 2025"]
[Site "Baku"]
[Date "2025.01.13"]
[Round "8.1"]
[White "Ibrahimli, Murad"]
[Black "Aslanov, Umid"]
[Result "1-0"]
[Annotator "TA"]
[ECO "D00"]
[WhiteElo "2415"]
[BlackElo "2250"]
[PlyCount "87"]
[EventDate "2025.01.05"]
[EventType "swiss"]
[EventCountry "AZE"]
[SourceTitle "playchess.com"]
[Source "ChessBase"]
[SourceQuality "1"]
[TimeControl "40/5400+30:1800+30"]

{[%evp 9,87,0,-10,-3,-18,-20,-22,5,23,28,23,39,37,33,108,118,111,122,131,100,101,93,104,102,95,108,103,100,97,64,62,70,73,49,120,127,135,127,154,96,97,78,74,81,73,-37,83,93,117,124,122,121,284,296,395,387,375,268,786,505,532,366,333,335,280,265,509,265,746,752,717,754,738,761,775,770,701,694,671,585]} 1. d4 {[%emt 0:02:14]} d5 {[%emt 0:00:14]} 2. Bf4 {[%emt 0:00:08]} Nf6 {[%emt 0:00:06]} 3. e3 {[%emt 0:00:04]} c5 {[%emt 0:00:25]} 4. dxc5 {[%emt 0:00:37]} Nc6 {[%emt 0:00:15]} 5. Bb5 {[%emt 0:00:35]} Bd7 {[%emt 0:01:22]} 6. c3 {[%emt 0:16:22][%cal Bc2c3,Bc3b4][%mdl 32]} e6 {[%emt 0:02:27]} 7. b4 {[%emt 0:00:21]} a5 {[%emt 0:02:59]} 8. Qb3 {[%emt 0:00:05]} axb4 {[%emt 0:00:54]} 9. cxb4 {[%emt 0:00:28]} Ne4 {[%emt 0:00:18]} 10. Ne2 {[%emt 0:22:34][%cal Bg1e2,Be2c3,Bc3e4,Be4g3][%mdl 32]} Qf6 {[%emt 0:16:13]} 11. Nbc3 {[%emt 0:01:33]} Nxc3 {[%emt 0:14:53]} (11... g5 $14 12. Bg3 h5) 12. Nxc3 $16 {[%emt 0:00:09]} d4 {[%emt 0:00:22]} 13. Ne4 {[%emt 0:09:54]} Qg6 {[%emt 0:00:39][%csl LRe4,LRg2]} 14. Ng3 {[%emt 0:10:41]} Qf6 {[%emt 0:09:29]} 15. O-O {[%emt 0:02:40]} e5 {[%emt 0:01:00] [#]} 16. Bxe5 $1 {[%emt 0:00:12][%mdl 512]} Nxe5 {[%emt 0:02:44]} 17. Bxd7+ {[%emt 0:00:07]} Nxd7 {[%emt 0:00:03]} 18. exd4 {[%emt 0:00:07]} Be7 {[%emt 0:00:15][%cal Oe8g8]} 19. Rfe1 {[%emt 0:01:38]} O-O $1 {[%emt 0:00:56][%cal Of8e8]} 20. Qd5 {[%emt 0:00:40]} Rfd8 {[%emt 0:00:07][%cal Od7c5] Threatens to win with ...Nxc5!.} 21. Qxb7 {[%emt 0:00:30]} Rab8 {[%emt 0:01:04]} (21... Qxd4 22. Nf5 Nxc5 23. Nxe7+ (23. Qxe7 Qxb4 24. Qg5 g6 $18) (23. Qxa8 Rxa8 24. Nxd4 Bf6 $18) 23... Kh8 24. bxc5 $18) (21... Bf8 $1 $14) 22. Qe4 {[%emt 0:00:09] White is more active.} Bf8 {[%emt 0:03:10]} 23. a3 {[%emt 0:04:14]} Qa6 {[%emt 0:01:36] [#]} 24. Qf3 {[%emt 0:15:40]} (24. Qe2 $142 $1 {[%cal Re2a6]} Qc6 25. Reb1) 24... Nf6 {[%emt 0:03:10]} 25. Rad1 $36 {[%emt 0:00:04][%mdl 2048] White has strong initiative.} Nd5 {[%emt 0:01:23]} 26. Ne4 {[%emt 0:02:29]} Ra8 {[%emt 0:06:43]} 27. Ra1 {[%emt 0:06:31]} (27. Nc3 $16 Qxa3 28. Nxd5 Qxf3 29. gxf3 Rxd5 30. b5) 27... h6 {[%emt 0:06:38]} (27... Nxb4 $1 $15 28. Ng5 Ra7 (28... Rxd4 29. Qxf7+ Kh8 30. Qf5 $14)) 28. g3 {[%emt 0:00:17]} Qc6 {[%emt 0:01:26]} 29. Rad1 {[%emt 0:01:24]} g6 {[%emt 0:00:58]} 30. Rd3 {[%emt 0:00:56]} Ra7 $2 {[%emt 0:04:03]} (30... Qa6 $16) 31. Nc3 $18 {[%emt 0:00:28]} Qa8 {[%emt 0:04:42]} 32. Nxd5 {[%emt 0:00:19]} Rxd5 {[%emt 0:01:24]} 33. Re8 {[%emt 0:00:44] Prevents Qd8.} Qc6 $2 {[%emt 0:03:10]} (33... Qxe8 34. Qxd5 h5) 34. Re5 {[%emt 0:00:29]} Rad7 {[%emt 0:00:01]} 35. Rxd5 {[%emt 0:00:14]} Rxd5 {[%emt 0:00:04] [#]} 36. a4 $1 {[%emt 0:00:49][%cal Ba3a4,Ba4a5][%mdl 544]} Qd7 {[%emt 0:00:38]} 37. Qe4 {[%emt 0:01:03]} Bg7 $2 {[%emt 0:00:01]} (37... h5 {keeps fighting.} 38. h4 f5) 38. a5 {[%emt 0:00:22]} Bxd4 $2 {[%emt 0:00:24]} (38... Qb5 39. Qxd5 Qxd3) 39. Kg2 {[%emt 0:00:05][%cal Oc5c6]} f5 {[%emt 0:00:43]} 40. Qf3 {[%emt 0:00:00][%cal Oc5c6] Hoping for c6!.} g5 {[%emt 0:00:00] [#]} 41. c6 $1 {[%emt 0:01:35][%mdl 512]} g4 {[%emt 0:01:29]} 42. cxd7 {[%emt 0:00:04]} gxf3+ {[%emt 0:00:04]} 43. Kxf3 {[%emt 0:00:03]} (43. Rxf3 Rxd7 44. a6 (44. Rxf5 Bc3 $18) 44... Bb6 45. Rxf5 Rd2 $11) 43... Rxd7 {[%emt 0:00:16]} 44. a6 {[%emt 0:00:12]} 1-0